[Event "Titled Tuesday Blitz April 11 Late 2023"]
[White "Osmonbekov, Talaibek"]
[Black "Dobre, Claudiu-Cristian"]
[WhiteFideId "2017253"]
[BlackFideId "1211854"]
[WhiteElo "2135"]
[BlackElo "2207"]
[Result "1-0"]
[Round "03"]
[TimeControl "180+2"]
[Date "2023.04.11"]
[WhiteClock "0:00:14"]
[BlackClock "0:00:01"]

1. d4 {[%clk 0:03:00]}  f5 {[%clk 0:02:58]} 2. Bf4 {[%clk 0:03:01]}  Nf6 {[%clk 0:02:56]} 3. Nc3 {[%clk 0:02:59]}  d6 {[%clk 0:02:50]} 4. d5 {[%clk 0:02:58]}  g6 {[%clk 0:02:42]} 5. f3 {[%clk 0:02:58]}  Bg7 {[%clk 0:02:42]} 6. e4 {[%clk 0:02:58]}  fxe4 {[%clk 0:02:33]} 7. fxe4 {[%clk 0:02:59]}  O-O {[%clk 0:02:33]} 8. Qd2 {[%clk 0:02:53]}  c6 {[%clk 0:02:16]} 9. O-O-O {[%clk 0:02:35]}  Ng4 {[%clk 0:02:12]} 10. Nh3 {[%clk 0:02:30]}  Nd7 {[%clk 0:01:55]} 11. dxc6 {[%clk 0:02:17]}  bxc6 {[%clk 0:01:55]} 12. Bc4+ {[%clk 0:02:17]}  Kh8 {[%clk 0:01:54]} 13. Be6 {[%clk 0:02:15]}  Nde5 {[%clk 0:01:52]} 14. Ng5 {[%clk 0:02:10]}  h6 {[%clk 0:01:15]} 15. Bxe5 {[%clk 0:02:07]}  Nxe5 {[%clk 0:01:06]} 16. Bxc8 {[%clk 0:01:54]}  Qxc8 {[%clk 0:01:05]} 17. Nf3 {[%clk 0:01:52]}  Nc4 {[%clk 0:00:50]} 18. Qd3 {[%clk 0:01:45]}  Ne5 {[%clk 0:00:23]} 19. Nxe5 {[%clk 0:01:41]}  Bxe5 {[%clk 0:00:24]} 20. Rdf1 {[%clk 0:01:32]}  Qe6 {[%clk 0:00:24]} 21. g3 {[%clk 0:01:22]}  Kh7 {[%clk 0:00:20]} 22. b3 {[%clk 0:01:14]}  a5 {[%clk 0:00:20]} 23. a4 {[%clk 0:01:11]}  Bg7 {[%clk 0:00:20]} 24. Ne2 {[%clk 0:01:10]}  Qe5 {[%clk 0:00:20]} 25. Nf4 {[%clk 0:01:08]}  Qb2+ {[%clk 0:00:19]} 26. Kd2 {[%clk 0:01:07]}  Qa3 {[%clk 0:00:18]} 27. e5 {[%clk 0:01:04]}  Rf5 {[%clk 0:00:17]} 28. Nxg6 {[%clk 0:01:03]}  Rxf1 {[%clk 0:00:10]} 29. Rxf1 {[%clk 0:01:02]}  Kg8 {[%clk 0:00:05]} 30. Nxe7+ {[%clk 0:01:01]}  Kh8 {[%clk 0:00:05]} 31. Ng6+ {[%clk 0:00:59]}  Kg8 {[%clk 0:00:06]} 32. Ne7+ {[%clk 0:00:59]}  Kh8 {[%clk 0:00:06]} 33. exd6 {[%clk 0:00:58]}  Qb4+ {[%clk 0:00:04]} 34. Ke2 {[%clk 0:00:55]}  Qg4+ {[%clk 0:00:03]} 35. Rf3 {[%clk 0:00:52]}  Rd8 {[%clk 0:00:01]} 36. Ng6+ {[%clk 0:00:52]}  Kg8 {[%clk 0:00:01]} 37. Ne7+ {[%clk 0:00:50]}  Kh8 {[%clk 0:00:01]} 38. Kf2 {[%clk 0:00:48]}  Qe6 {[%clk 0:00:01]} 39. Ng6+ {[%clk 0:00:45]}  Kg8 {[%clk 0:00:01]} 40. Ne7+ {[%clk 0:00:38]}  Kh8 {[%clk 0:00:02]} 41. Qg6 {[%clk 0:00:24]}  Qxg6 {[%clk 0:00:01]} 42. Nxg6+ {[%clk 0:00:24]}  Kh7 {[%clk 0:00:02]} 43. Ne7 {[%clk 0:00:21]}  Rxd6 {[%clk 0:00:02]} 44. Nf5 {[%clk 0:00:20]}  Rd2+ {[%clk 0:00:03]} 45. Ke3 {[%clk 0:00:18]}  Rxc2 {[%clk 0:00:03]} 46. Nxg7 {[%clk 0:00:18]}  Kxg7 {[%clk 0:00:03]} 47. Kd4 {[%clk 0:00:18]}  c5+ {[%clk 0:00:04]} 48. Kd5 {[%clk 0:00:17]}  Rxh2 {[%clk 0:00:02]} 49. Kxc5 {[%clk 0:00:17]}  Rb2 {[%clk 0:00:03]} 50. Kb5 {[%clk 0:00:17]}  Kg6 {[%clk 0:00:03]} 51. Kxa5 {[%clk 0:00:16]}  Kg5 {[%clk 0:00:04]} 52. b4 {[%clk 0:00:15]}  Kg4 {[%clk 0:00:04]} 53. Rc3 {[%clk 0:00:15]}  Rf2 {[%clk 0:00:03]} 54. b5 {[%clk 0:00:15]}  Rf8 {[%clk 0:00:03]} 55. b6 {[%clk 0:00:15]}  Rf7 {[%clk 0:00:01]} 56. Ka6 {[%clk 0:00:14]} 1-0


[Site "https://www.chess.com"]

[Event "Titled Tuesday Blitz April 11 Late 2023"]
[White "Urbina Perez, Juan Antonio"]
[Black "Barria Santos, Jose Guilherme"]
[WhiteFideId "2217368"]
[BlackFideId "1939300"]
[WhiteElo "2197"]
[BlackElo "2266"]
[Result "1-0"]
[Round "03"]
[TimeControl "180+2"]
[Date "2023.04.11"]
[WhiteClock "0:01:30"]
[BlackClock "0:00:55"]

1. c4 {[%clk 0:02:57]}  e5 {[%clk 0:02:51]} 2. d3 {[%clk 0:02:56]}  Nc6 {[%clk 0:02:52]} 3. Nf3 {[%clk 0:02:55]}  Nf6 {[%clk 0:02:53]} 4. a3 {[%clk 0:02:53]}  b6 {[%clk 0:02:53]} 5. g3 {[%clk 0:02:51]}  Bb7 {[%clk 0:02:54]} 6. Bg2 {[%clk 0:02:51]}  Nd4 {[%clk 0:02:55]} 7. O-O {[%clk 0:02:48]}  Nxf3+ {[%clk 0:02:55]} 8. exf3 {[%clk 0:02:47]}  Bd6 {[%clk 0:02:54]} 9. Re1 {[%clk 0:02:47]}  O-O {[%clk 0:02:52]} 10. Nc3 {[%clk 0:02:45]}  h6 {[%clk 0:02:48]} 11. d4 {[%clk 0:02:41]}  exd4 {[%clk 0:02:46]} 12. Qxd4 {[%clk 0:02:42]}  Bc5 {[%clk 0:02:46]} 13. Qd3 {[%clk 0:02:41]}  Re8 {[%clk 0:02:46]} 14. Bf4 {[%clk 0:02:33]}  Rxe1+ {[%clk 0:02:41]} 15. Rxe1 {[%clk 0:02:34]}  d5 {[%clk 0:02:42]} 16. cxd5 {[%clk 0:02:20]}  Nxd5 {[%clk 0:02:42]} 17. Rd1 {[%clk 0:02:17]}  c6 {[%clk 0:01:28]} 18. b4 {[%clk 0:02:12]}  Be7 {[%clk 0:01:15]} 19. Nxd5 {[%clk 0:02:00]}  cxd5 {[%clk 0:01:16]} 20. Be3 {[%clk 0:01:53]}  Rc8 {[%clk 0:01:12]} 21. f4 {[%clk 0:01:50]}  Bf6 {[%clk 0:01:09]} 22. Bxd5 {[%clk 0:01:48]}  Bxd5 {[%clk 0:01:10]} 23. Qxd5 {[%clk 0:01:48]}  Qxd5 {[%clk 0:01:11]} 24. Rxd5 {[%clk 0:01:48]}  Rc3 {[%clk 0:01:12]} 25. a4 {[%clk 0:01:42]}  Ra3 {[%clk 0:01:12]} 26. a5 {[%clk 0:01:42]}  bxa5 {[%clk 0:01:12]} 27. bxa5 {[%clk 0:01:42]}  a6 {[%clk 0:01:12]} 28. Bb6 {[%clk 0:01:38]}  Kh7 {[%clk 0:01:05]} 29. Rd7 {[%clk 0:01:35]}  Kg6 {[%clk 0:01:05]} 30. h4 {[%clk 0:01:34]}  Kf5 {[%clk 0:00:59]} 31. Rxf7 {[%clk 0:01:31]}  Kg4 {[%clk 0:00:55]} 32. Kg2 {[%clk 0:01:30]} 1-0


[Site "https://www.chess.com"]

[Event "Titled Tuesday Blitz April 11 Late 2023"]
[White "Roberson, Peter T"]
[Black "Levine, David"]
[WhiteFideId "412384"]
[BlackFideId "2011611"]
[WhiteElo "2346"]
[BlackElo "2040"]
[Result "1-0"]
[Round "03"]
[TimeControl "180+2"]
[Date "2023.04.11"]
[WhiteClock "0:00:33"]
[BlackClock "0:00:01"]

1. d4 {[%clk 0:03:00]}  d5 {[%clk 0:02:59]} 2. c4 {[%clk 0:02:59]}  dxc4 {[%clk 0:02:59]} 3. e3 {[%clk 0:02:59]}  Nf6 {[%clk 0:02:58]} 4. Bxc4 {[%clk 0:02:57]}  e6 {[%clk 0:02:58]} 5. Nf3 {[%clk 0:02:58]}  c5 {[%clk 0:02:57]} 6. O-O {[%clk 0:02:58]}  Nc6 {[%clk 0:02:57]} 7. b3 {[%clk 0:02:33]}  cxd4 {[%clk 0:02:50]} 8. exd4 {[%clk 0:02:33]}  Be7 {[%clk 0:02:48]} 9. Bb2 {[%clk 0:02:32]}  O-O {[%clk 0:02:48]} 10. Nbd2 {[%clk 0:02:32]}  b6 {[%clk 0:02:38]} 11. Rc1 {[%clk 0:02:30]}  Bb7 {[%clk 0:02:37]} 12. Re1 {[%clk 0:02:30]}  Rc8 {[%clk 0:02:27]} 13. Ne5 {[%clk 0:02:30]}  Nxe5 {[%clk 0:02:24]} 14. dxe5 {[%clk 0:02:30]}  Nd7 {[%clk 0:02:10]} 15. Qg4 {[%clk 0:02:26]}  Rc5 {[%clk 0:01:38]} 16. Qg3 {[%clk 0:01:58]}  Qc7 {[%clk 0:01:31]} 17. Bd3 {[%clk 0:01:44]}  Rxc1 {[%clk 0:01:04]} 18. Rxc1 {[%clk 0:01:42]}  Qb8 {[%clk 0:00:53]} 19. Ne4 {[%clk 0:01:39]}  Bxe4 {[%clk 0:00:45]} 20. Bxe4 {[%clk 0:01:40]}  Nc5 {[%clk 0:00:39]} 21. Bb1 {[%clk 0:01:33]}  Rd8 {[%clk 0:00:36]} 22. h4 {[%clk 0:01:31]}  Qb7 {[%clk 0:00:29]} 23. h5 {[%clk 0:01:28]}  h6 {[%clk 0:00:28]} 24. Re1 {[%clk 0:01:14]}  Nd7 {[%clk 0:00:22]} 25. Bc1 {[%clk 0:01:13]}  Kh8 {[%clk 0:00:19]} 26. Bf4 {[%clk 0:01:11]}  Qd5 {[%clk 0:00:14]} 27. Qe3 {[%clk 0:01:10]}  Bf8 {[%clk 0:00:12]} 28. Be4 {[%clk 0:01:07]}  Qc5 {[%clk 0:00:10]} 29. Qf3 {[%clk 0:01:05]}  Nxe5 {[%clk 0:00:08]} 30. Bxe5 {[%clk 0:01:05]}  Qxe5 {[%clk 0:00:08]} 31. Qxf7 {[%clk 0:01:06]}  Qf6 {[%clk 0:00:06]} 32. Qxa7 {[%clk 0:00:49]}  Bc5 {[%clk 0:00:06]} 33. Rf1 {[%clk 0:00:46]}  Rf8 {[%clk 0:00:05]} 34. Bf3 {[%clk 0:00:38]}  Qg5 {[%clk 0:00:03]} 35. Qd7 {[%clk 0:00:35]}  Rxf3 {[%clk 0:00:01]} 36. Qe8+ {[%clk 0:00:32]}  Rf8 {[%clk 0:00:01]} 37. Qxe6 {[%clk 0:00:33]} 1-0


[Site "https://www.chess.com"]

[Event "Titled Tuesday Blitz April 11 Late 2023"]
[White "Aggelis, Nikolaos"]
[Black "Eisa Mohmood, Alkhoori"]
[WhiteFideId "4213220"]
[BlackFideId "9316116"]
[WhiteElo "2189"]
[BlackElo "1310"]
[Result "1-0"]
[Round "03"]
[TimeControl "180+2"]
[Date "2023.04.11"]
[WhiteClock "0:01:48"]
[BlackClock "0:00:32"]

1. c4 {[%clk 0:02:58]}  Nf6 {[%clk 0:02:59]} 2. g3 {[%clk 0:02:58]}  g6 {[%clk 0:02:57]} 3. Bg2 {[%clk 0:02:59]}  Bg7 {[%clk 0:02:55]} 4. Nf3 {[%clk 0:02:59]}  O-O {[%clk 0:02:55]} 5. b3 {[%clk 0:02:59]}  Ne4 {[%clk 0:02:53]} 6. d4 {[%clk 0:02:58]}  c5 {[%clk 0:02:51]} 7. Bb2 {[%clk 0:02:57]}  d5 {[%clk 0:02:48]} 8. O-O {[%clk 0:02:57]}  dxc4 {[%clk 0:02:31]} 9. bxc4 {[%clk 0:02:57]}  Nc6 {[%clk 0:02:27]} 10. e3 {[%clk 0:02:56]}  cxd4 {[%clk 0:02:20]} 11. Nxd4 {[%clk 0:02:54]}  Nxd4 {[%clk 0:01:20]} 12. Bxd4 {[%clk 0:02:42]}  Nd6 {[%clk 0:01:12]} 13. Bxg7 {[%clk 0:02:41]}  Kxg7 {[%clk 0:01:11]} 14. Qd4+ {[%clk 0:02:41]}  f6 {[%clk 0:01:07]} 15. Nc3 {[%clk 0:02:41]}  Be6 {[%clk 0:00:54]} 16. Bxb7 {[%clk 0:02:36]}  Nxb7 {[%clk 0:00:53]} 17. Nd5 {[%clk 0:02:33]}  Bxd5 {[%clk 0:00:49]} 18. cxd5 {[%clk 0:02:32]}  Qd7 {[%clk 0:00:44]} 19. Rab1 {[%clk 0:02:31]}  Nd6 {[%clk 0:00:43]} 20. Rfc1 {[%clk 0:02:26]}  Rfc8 {[%clk 0:00:43]} 21. h4 {[%clk 0:02:27]}  Rxc1+ {[%clk 0:00:41]} 22. Rxc1 {[%clk 0:02:17]}  Rc8 {[%clk 0:00:42]} 23. Rxc8 {[%clk 0:02:14]}  Nxc8 {[%clk 0:00:43]} 24. Qc5 {[%clk 0:02:08]}  Nb6 {[%clk 0:00:43]} 25. e4 {[%clk 0:02:07]}  Qd6 {[%clk 0:00:43]} 26. Qc3 {[%clk 0:02:02]}  Qe5 {[%clk 0:00:40]} 27. Qd2 {[%clk 0:01:51]}  Qxe4 {[%clk 0:00:38]} 28. d6 {[%clk 0:01:51]}  Qd5 {[%clk 0:00:31]} 29. Qxd5 {[%clk 0:01:48]}  Nxd5 {[%clk 0:00:32]} 30. d7 {[%clk 0:01:48]} 1-0


[Site "https://www.chess.com"]

[Event "Titled Tuesday Blitz April 11 Late 2023"]
[White "Omelja, Artem"]
[Black "Golubev, Mikhail"]
[WhiteFideId "14119846"]
[BlackFideId "14100983"]
[WhiteElo "2404"]
[BlackElo "2374"]
[Result "1/2-1/2"]
[Round "03"]
[TimeControl "180+2"]
[Date "2023.04.11"]
[WhiteClock "0:00:42"]
[BlackClock "0:00:01"]

1. e4 {[%clk 0:02:52]}  c5 {[%clk 0:02:59]} 2. Nf3 {[%clk 0:02:51]}  d6 {[%clk 0:02:59]} 3. Bb5+ {[%clk 0:02:51]}  Bd7 {[%clk 0:02:58]} 4. Bxd7+ {[%clk 0:02:49]}  Qxd7 {[%clk 0:02:58]} 5. O-O {[%clk 0:02:50]}  Nf6 {[%clk 0:02:56]} 6. Re1 {[%clk 0:02:50]}  Nc6 {[%clk 0:02:54]} 7. c3 {[%clk 0:02:50]}  e6 {[%clk 0:02:40]} 8. d4 {[%clk 0:02:43]}  cxd4 {[%clk 0:02:40]} 9. cxd4 {[%clk 0:02:44]}  d5 {[%clk 0:02:40]} 10. exd5 {[%clk 0:02:41]}  Nxd5 {[%clk 0:02:39]} 11. Nc3 {[%clk 0:02:42]}  Be7 {[%clk 0:02:27]} 12. Bg5 {[%clk 0:02:39]}  O-O {[%clk 0:02:18]} 13. Bxe7 {[%clk 0:02:37]}  Ndxe7 {[%clk 0:02:17]} 14. Qd3 {[%clk 0:02:33]}  Rad8 {[%clk 0:02:09]} 15. Rad1 {[%clk 0:02:32]}  Nf5 {[%clk 0:02:03]} 16. d5 {[%clk 0:02:32]}  Nb4 {[%clk 0:01:56]} 17. Qe4 {[%clk 0:02:11]}  Nxd5 {[%clk 0:01:52]} 18. Nxd5 {[%clk 0:02:11]}  exd5 {[%clk 0:01:49]} 19. Qf4 {[%clk 0:02:12]}  Rfe8 {[%clk 0:01:36]} 20. Rxe8+ {[%clk 0:02:10]}  Rxe8 {[%clk 0:01:35]} 21. g4 {[%clk 0:02:10]}  Ne7 {[%clk 0:01:28]} 22. h3 {[%clk 0:02:08]}  Nc6 {[%clk 0:01:08]} 23. Nd4 {[%clk 0:02:04]}  Re4 {[%clk 0:01:00]} 24. Qf5 {[%clk 0:02:04]}  Qxf5 {[%clk 0:00:49]} 25. Nxf5 {[%clk 0:02:05]}  g6 {[%clk 0:00:36]} 26. Ng3 {[%clk 0:01:57]}  Rd4 {[%clk 0:00:33]} 27. Rxd4 {[%clk 0:01:48]}  Nxd4 {[%clk 0:00:33]} 28. f4 {[%clk 0:01:42]}  Kf8 {[%clk 0:00:32]} 29. Kf2 {[%clk 0:01:42]}  Ke7 {[%clk 0:00:31]} 30. Ke3 {[%clk 0:01:42]}  Nc6 {[%clk 0:00:31]} 31. a3 {[%clk 0:01:40]}  Ke6 {[%clk 0:00:30]} 32. b4 {[%clk 0:01:38]}  a6 {[%clk 0:00:30]} 33. Ne2 {[%clk 0:01:38]}  h6 {[%clk 0:00:26]} 34. h4 {[%clk 0:01:29]}  h5 {[%clk 0:00:21]} 35. f5+ {[%clk 0:01:29]}  Ke5 {[%clk 0:00:16]} 36. fxg6 {[%clk 0:01:24]}  fxg6 {[%clk 0:00:16]} 37. gxh5 {[%clk 0:01:23]}  gxh5 {[%clk 0:00:16]} 38. Nf4 {[%clk 0:01:24]}  d4+ {[%clk 0:00:13]} 39. Kf3 {[%clk 0:01:24]}  Kf5 {[%clk 0:00:13]} 40. Nxh5 {[%clk 0:01:22]}  Ne5+ {[%clk 0:00:13]} 41. Ke2 {[%clk 0:01:22]}  Kg4 {[%clk 0:00:11]} 42. Nf6+ {[%clk 0:01:16]}  Kxh4 {[%clk 0:00:10]} 43. a4 {[%clk 0:01:01]}  Kg5 {[%clk 0:00:08]} 44. Ne4+ {[%clk 0:01:01]}  Kf4 {[%clk 0:00:06]} 45. Nd6 {[%clk 0:01:02]}  b6 {[%clk 0:00:05]} 46. b5 {[%clk 0:01:00]}  axb5 {[%clk 0:00:04]} 47. axb5 {[%clk 0:01:01]}  Nd7 {[%clk 0:00:03]} 48. Kd3 {[%clk 0:01:01]}  Ke5 {[%clk 0:00:01]} 49. Nc8 {[%clk 0:00:46]}  Nc5+ {[%clk 0:00:01]} 50. Kc4 {[%clk 0:00:46]}  d3 {[%clk 0:00:02]} 51. Kc3 {[%clk 0:00:47]}  Ke4 {[%clk 0:00:02]} 52. Nxb6 {[%clk 0:00:46]}  Ke3 {[%clk 0:00:02]} 53. Nc4+ {[%clk 0:00:46]}  Ke2 {[%clk 0:00:02]} 54. Kd4 {[%clk 0:00:45]}  Na4 {[%clk 0:00:01]} 55. Kd5 {[%clk 0:00:39]}  d2 {[%clk 0:00:02]} 56. Nxd2 {[%clk 0:00:38]}  Kxd2 {[%clk 0:00:02]} 57. Kc4 {[%clk 0:00:39]}  Nb6+ {[%clk 0:00:02]} 58. Kc5 {[%clk 0:00:39]}  Na4+ {[%clk 0:00:03]} 59. Kb4 {[%clk 0:00:40]}  Nb6 {[%clk 0:00:03]} 60. Ka5 {[%clk 0:00:41]}  Nc4+ {[%clk 0:00:03]} 61. Ka6 {[%clk 0:00:41]}  Kc3 {[%clk 0:00:02]} 62. b6 {[%clk 0:00:42]}  Nxb6 {[%clk 0:00:01]} 1/2-1/2


[Site "https://www.chess.com"]

[Event "Titled Tuesday Blitz April 11 Late 2023"]
[White "Vifleemskaia, Svetlana"]
[Black "Manea, Alexandru"]
[WhiteFideId "4129490"]
[BlackFideId "1207660"]
[WhiteElo "1930"]
[BlackElo "2226"]
[Result "1-0"]
[Round "03"]
[TimeControl "180+2"]
[Date "2023.04.11"]
[WhiteClock "0:00:07"]
[BlackClock "0:01:38"]

1. d4 {[%clk 0:03:00]}  a6 {[%clk 0:02:57]} 2. e4 {[%clk 0:02:59]}  g6 {[%clk 0:02:58]} 3. c4 {[%clk 0:02:58]}  c6 {[%clk 0:02:59]} 4. a4 {[%clk 0:02:56]}  b5 {[%clk 0:03:00]} 5. axb5 {[%clk 0:02:56]}  cxb5 {[%clk 0:03:00]} 6. cxb5 {[%clk 0:02:56]}  Bg7 {[%clk 0:03:01]} 7. Nc3 {[%clk 0:02:55]}  Bb7 {[%clk 0:03:01]} 8. Nf3 {[%clk 0:02:48]}  axb5 {[%clk 0:03:01]} 9. Rxa8 {[%clk 0:02:47]}  Bxa8 {[%clk 0:03:02]} 10. Bxb5 {[%clk 0:02:45]}  Nf6 {[%clk 0:03:03]} 11. Qe2 {[%clk 0:02:41]}  O-O {[%clk 0:03:01]} 12. O-O {[%clk 0:02:40]}  d5 {[%clk 0:03:01]} 13. e5 {[%clk 0:02:37]}  Ne4 {[%clk 0:03:02]} 14. Bd3 {[%clk 0:02:31]}  Nxc3 {[%clk 0:02:46]} 15. bxc3 {[%clk 0:02:31]}  Nc6 {[%clk 0:02:47]} 16. e6 {[%clk 0:02:28]}  f6 {[%clk 0:02:41]} 17. h4 {[%clk 0:02:22]}  Qd6 {[%clk 0:02:37]} 18. h5 {[%clk 0:02:20]}  f5 {[%clk 0:02:37]} 19. hxg6 {[%clk 0:02:13]}  hxg6 {[%clk 0:02:36]} 20. Ng5 {[%clk 0:02:10]}  Nd8 {[%clk 0:02:34]} 21. Re1 {[%clk 0:01:59]}  Rf6 {[%clk 0:02:34]} 22. g3 {[%clk 0:01:53]}  Bb7 {[%clk 0:02:33]} 23. Bf4 {[%clk 0:01:52]}  Qb6 {[%clk 0:02:33]} 24. Be5 {[%clk 0:01:50]}  Rf8 {[%clk 0:02:29]} 25. Bxg7 {[%clk 0:01:47]}  Kxg7 {[%clk 0:02:29]} 26. Qe5+ {[%clk 0:01:45]}  Rf6 {[%clk 0:02:30]} 27. Kg2 {[%clk 0:01:31]}  Bc8 {[%clk 0:02:07]} 28. Rh1 {[%clk 0:01:27]}  Nxe6 {[%clk 0:02:07]} 29. Nh7 {[%clk 0:01:26]}  Qc6 {[%clk 0:02:02]} 30. Nxf6 {[%clk 0:01:24]}  exf6 {[%clk 0:02:03]} 31. Qb8 {[%clk 0:01:17]}  Qxc3 {[%clk 0:01:58]} 32. Qa7+ {[%clk 0:01:07]}  Nc7 {[%clk 0:01:58]} 33. Qb8 {[%clk 0:00:58]}  Ne6 {[%clk 0:01:55]} 34. Qa7+ {[%clk 0:00:57]}  Nc7 {[%clk 0:01:53]} 35. Rb1 {[%clk 0:00:49]}  Bd7 {[%clk 0:01:48]} 36. Rb7 {[%clk 0:00:44]}  Qxd3 {[%clk 0:01:48]} 37. Rxc7 {[%clk 0:00:43]}  Qe4+ {[%clk 0:01:49]} 38. Kh2 {[%clk 0:00:41]}  Qf3 {[%clk 0:01:42]} 39. Rxd7+ {[%clk 0:00:40]}  Kh6 {[%clk 0:01:43]} 40. Rh7+ {[%clk 0:00:27]}  Kg5 {[%clk 0:01:43]} 41. Qa2 {[%clk 0:00:26]}  Qd3 {[%clk 0:01:40]} 42. Rh4 {[%clk 0:00:16]}  f4 {[%clk 0:01:40]} 43. Rxf4 {[%clk 0:00:14]}  f5 {[%clk 0:01:40]} 44. Qa7 {[%clk 0:00:10]}  Kh6 {[%clk 0:01:40]} 45. Qe7 {[%clk 0:00:10]}  g5 {[%clk 0:01:38]} 46. Qf6+ {[%clk 0:00:09]}  Kh5 {[%clk 0:01:39]} 47. Rxf5 {[%clk 0:00:08]}  Kg4 {[%clk 0:01:38]} 48. Qxg5# {[%clk 0:00:07]} 1-0


[Site "https://www.chess.com"]

[Event "Titled Tuesday Blitz April 11 Late 2023"]
[White "Hirneise, Jens"]
[Black "Skaric, Djuro"]
[WhiteFideId "24614734"]
[BlackFideId "934569"]
[WhiteElo "2345"]
[BlackElo "2282"]
[Result "1-0"]
[Round "03"]
[TimeControl "180+2"]
[Date "2023.04.11"]
[WhiteClock "0:00:46"]
[BlackClock "0:00:24"]

1. d4 {[%clk 0:03:00]}  d6 {[%clk 0:02:50]} 2. c4 {[%clk 0:02:56]}  g6 {[%clk 0:02:45]} 3. Nc3 {[%clk 0:02:54]}  Bg7 {[%clk 0:02:45]} 4. Nf3 {[%clk 0:02:54]}  Nf6 {[%clk 0:02:46]} 5. g3 {[%clk 0:02:54]}  O-O {[%clk 0:02:46]} 6. Bg2 {[%clk 0:02:55]}  Nc6 {[%clk 0:02:46]} 7. O-O {[%clk 0:02:55]}  h6 {[%clk 0:02:47]} 8. Bf4 {[%clk 0:02:50]}  Nd7 {[%clk 0:02:47]} 9. h4 {[%clk 0:02:40]}  e5 {[%clk 0:02:46]} 10. dxe5 {[%clk 0:02:40]}  Ndxe5 {[%clk 0:02:46]} 11. Nxe5 {[%clk 0:02:27]}  dxe5 {[%clk 0:02:44]} 12. Be3 {[%clk 0:02:22]}  Be6 {[%clk 0:02:44]} 13. Nd5 {[%clk 0:02:19]}  f5 {[%clk 0:02:40]} 14. Qd2 {[%clk 0:02:12]}  Kh7 {[%clk 0:02:39]} 15. h5 {[%clk 0:02:09]}  g5 {[%clk 0:02:39]} 16. f4 {[%clk 0:02:08]}  gxf4 {[%clk 0:02:38]} 17. gxf4 {[%clk 0:02:07]}  e4 {[%clk 0:02:38]} 18. Bf2 {[%clk 0:01:55]}  Rf7 {[%clk 0:02:20]} 19. Kh2 {[%clk 0:01:51]}  Ne7 {[%clk 0:02:04]} 20. Rad1 {[%clk 0:01:48]}  Bxd5 {[%clk 0:02:02]} 21. cxd5 {[%clk 0:01:47]}  Nc8 {[%clk 0:02:02]} 22. Bh3 {[%clk 0:01:43]}  Nd6 {[%clk 0:01:51]} 23. Rg1 {[%clk 0:01:44]}  Qe8 {[%clk 0:01:46]} 24. Bd4 {[%clk 0:01:38]}  e3 {[%clk 0:01:36]} 25. Qd3 {[%clk 0:01:34]}  Bxd4 {[%clk 0:01:18]} 26. Qxd4 {[%clk 0:01:35]}  Qe7 {[%clk 0:01:10]} 27. Rg6 {[%clk 0:01:31]}  Rg8 {[%clk 0:00:53]} 28. Rdg1 {[%clk 0:01:30]}  Rfg7 {[%clk 0:00:53]} 29. Qe5 {[%clk 0:01:11]}  Qf7 {[%clk 0:00:52]} 30. Qe6 {[%clk 0:00:58]}  Qxe6 {[%clk 0:00:45]} 31. dxe6 {[%clk 0:00:50]}  Rxg6 {[%clk 0:00:44]} 32. hxg6+ {[%clk 0:00:51]}  Rxg6 {[%clk 0:00:43]} 33. Rc1 {[%clk 0:00:52]}  c6 {[%clk 0:00:42]} 34. e7 {[%clk 0:00:48]}  Re6 {[%clk 0:00:40]} 35. Rd1 {[%clk 0:00:49]}  Rxe7 {[%clk 0:00:24]} 36. Rxd6 {[%clk 0:00:46]} 1-0


[Site "https://www.chess.com"]

[Event "Titled Tuesday Blitz April 11 Late 2023"]
[White "Ferreira, Vitor Hugo Vieira"]
[Black "Rodriguez Santiago, Jaime"]
[WhiteFideId "2119765"]
[BlackFideId "3100898"]
[WhiteElo "2146"]
[BlackElo "2025"]
[Result "1-0"]
[Round "03"]
[TimeControl "180+2"]
[Date "2023.04.11"]
[WhiteClock "0:02:19"]
[BlackClock "0:01:39"]

1. Nf3 {[%clk 0:03:00]}  Nf6 {[%clk 0:02:57]} 2. g3 {[%clk 0:03:00]}  e6 {[%clk 0:02:56]} 3. Bg2 {[%clk 0:03:00]}  d5 {[%clk 0:02:57]} 4. O-O {[%clk 0:03:00]}  b6 {[%clk 0:02:54]} 5. c4 {[%clk 0:03:00]}  c5 {[%clk 0:02:51]} 6. cxd5 {[%clk 0:03:00]}  exd5 {[%clk 0:02:50]} 7. d4 {[%clk 0:03:00]}  Be7 {[%clk 0:02:47]} 8. Nc3 {[%clk 0:02:54]}  O-O {[%clk 0:02:46]} 9. Bg5 {[%clk 0:02:50]}  Bb7 {[%clk 0:02:43]} 10. Ne5 {[%clk 0:02:49]}  cxd4 {[%clk 0:02:26]} 11. Qxd4 {[%clk 0:02:46]}  Ne4 {[%clk 0:02:26]} 12. Bxe7 {[%clk 0:02:44]}  Qxe7 {[%clk 0:02:25]} 13. Nxd5 {[%clk 0:02:44]}  Bxd5 {[%clk 0:02:14]} 14. Qxd5 {[%clk 0:02:43]}  Nf6 {[%clk 0:02:09]} 15. Qxa8 {[%clk 0:02:42]}  Qxe5 {[%clk 0:02:09]} 16. Qxa7 {[%clk 0:02:41]}  Qxb2 {[%clk 0:02:08]} 17. Rab1 {[%clk 0:02:37]}  Qxe2 {[%clk 0:02:06]} 18. Rxb6 {[%clk 0:02:37]}  Nbd7 {[%clk 0:02:05]} 19. Rb7 {[%clk 0:02:36]}  Ne5 {[%clk 0:02:02]} 20. Qe3 {[%clk 0:02:32]}  Qxe3 {[%clk 0:01:56]} 21. fxe3 {[%clk 0:02:32]}  Nc4 {[%clk 0:01:50]} 22. Rfb1 {[%clk 0:02:27]}  Nxe3 {[%clk 0:01:48]} 23. Rb8 {[%clk 0:02:27]}  Nxg2 {[%clk 0:01:43]} 24. Rxf8+ {[%clk 0:02:25]}  Kxf8 {[%clk 0:01:43]} 25. Kxg2 {[%clk 0:02:25]}  Ke7 {[%clk 0:01:41]} 26. a4 {[%clk 0:02:25]}  Nd5 {[%clk 0:01:41]} 27. a5 {[%clk 0:02:23]}  Nc3 {[%clk 0:01:39]} 28. Rb7+ {[%clk 0:02:19]} 1-0


[Site "https://www.chess.com"]